fUST/lending_fUST_20250616
["ID","MTS","AMOUNT","RATE_DAILY","PERIOD"]
[366056192,1750038638766,-584.85768652,0.00022912,4]
[366056193,1750038638778,-460.0,0.00022912,4]
[366056194,1750038638789,-460.0,0.00022913,2]
[366056195,1750038638799,-496.35881247,0.00022958,2]
[366056196,1750038638810,-583.0172543,0.00022978,2]
[366056197,1750038638819,-163.28551509,0.00022999,2]
[366056198,1750038638829,-207.4,0.00023003,2]
[366056199,1750038638839,-5000.0,0.00023003,2]
[366056200,1750038638849,-500.0,0.00023003,2]
[366056201,1750038638859,-500.0,0.00023003,2]
[366056202,1750038638868,-500.0,0.00023003,2]
[366056203,1750038638878,-500.0,0.00023003,2]
[366056204,1750038638888,-533.47031743,0.00023003,2]
[366056205,1750038638897,-460.0,0.00023011,4]
[366056206,1750038638907,-460.0,0.00023011,4]
[366056207,1750038638917,-460.0,0.00023011,4]
[366056208,1750038638927,-460.0,0.00023013,4]
[366056209,1750038638937,-460.0,0.00023013,4]
[366056210,1750038638947,-460.0,0.00023013,4]
[366056211,1750038638956,-460.0,0.00023013,4]
[366056212,1750038638966,-394.01676888,0.00023013,4]
[366056213,1750038638975,-159.83283254,0.00023071,2]
[366056214,1750038638985,-556.0,0.00023136,2]
[366056215,1750038638996,-638.99716648,0.0002316,2]
[366056216,1750038639162,-501.180375,0.0002316,2]
[366056217,1750038639172,-501.68685801,0.0002316,2]
[366056218,1750038639182,-460.0,0.00023186,4]
[366056219,1750038639195,-460.0,0.00023187,2]
[366056220,1750038639204,-168.0,0.0002326,2]
[366056221,1750038639216,-460.0,0.00023285,4]
[366056222,1750038639226,-460.0,0.00023285,4]
[366056223,1750038639237,-460.0,0.00023285,4]
[366056224,1750038639248,-460.0,0.00023287,4]
[366056225,1750038639259,-460.0,0.00023287,4]
[366056226,1750038639272,-460.0,0.00023287,4]
[366056227,1750038639283,-460.0,0.00023287,4]
[366056228,1750038639292,-151.0,0.00023315,2]
[366056229,1750038639303,-1094.79489,0.00023339,3]
[366056230,1750038639313,-151.45049726,0.00023342,2]
[366056231,1750038639324,-460.0,0.0002346,4]
[366056232,1750038639338,-556.0,0.00023519,2]
[366056233,1750038639349,-5063.41355739,0.00023551,2]
[366056234,1750038639359,-460.0,0.00023559,4]
[366056235,1750038639370,-460.0,0.00023559,4]
[366056236,1750038639380,-460.0,0.00023559,4]
[366056237,1750038639391,-460.0,0.00023561,4]
[366056238,1750038639401,-460.0,0.00023561,4]
[366056239,1750038639411,-460.0,0.00023561,4]
[366056240,1750038639421,-1935.05,0.00023653,2]
[366056241,1750038639431,-460.0,0.00023734,4]
[366056242,1750038639441,-651.73,0.000238,2]
[366056243,1750038639451,-227.376791,0.000238,7]
[366056244,1750038639462,-12500.0,0.000238,3]
[366056245,1750038639471,-500.0,0.00023826,2]
[366056246,1750038639480,-229.86375354,0.00023826,3]
[366056247,1750038639490,-842.09577897,0.00023826,3]
[366056248,1750038639501,-160.0,0.00023826,3]
[366056249,1750038639510,-424.47602138,0.00023826,3]
[366056250,1750038639520,-12535.62630729,0.00023826,3]
[366056251,1750038639531,-835.55256958,0.00023826,3]
[366056252,1750038639542,-10358.93189903,0.0002383,3]
[366056253,1750038639551,-465.63253903,0.00023833,4]
[366056254,1750038639562,-460.0,0.00023833,4]
[366056255,1750038639572,-460.0,0.00023833,4]
[366056256,1750038639584,-201.20240157,0.00023835,4]
[366056257,1750038639594,-460.0,0.00023835,4]
[366056258,1750038639604,-460.0,0.00023835,4]
[366056259,1750038639614,-966.936,0.00023878,2]
[366056261,1750038639624,-653.0,0.00023878,2]
[366056263,1750038639635,-2160.0,0.00023878,2]
[366056265,1750038639646,-407.763,0.00023878,2]
[366056266,1750038639656,-5020.69256955,0.00023926,2]
[366056267,1750038639667,-159.83283254,0.00023957,2]
[366056268,1750038639676,-150.0,0.00023958,2]
[366056269,1750038639686,-62001.51817152,0.00024,2]
[366056324,1750038640502,-6898.7182074,0.00024,2]
[366056332,1750038640572,-500.0,0.0002219,2]
[366056334,1750038640582,-302.55400104,0.0002219,2]
[366057332,1750038687920,2300.0,0.00024658,120]
[366057333,1750038790648,1399.94233915,0.00024941,120]
[366057343,1750039316288,1381.0,0.00024942,60]
[366057345,1750039409330,163.646106,0.00013699,2]
[366057353,1750039654098,-315.0,0.00020089,2]
[366057354,1750039765216,-4685.0,0.00020089,2]
[366057355,1750039771318,4451.07302322,0.00020089,2]
[366057356,1750039773099,-207.0,0.00020292,2]
[366057357,1750039773124,-207.0,0.00020461,2]
[366057358,1750039773148,-207.0,0.00020463,2]
[366057359,1750039773172,-300.0,0.00020603,2]
[366057360,1750039773197,-300.0,0.00020604,2]
[366057361,1750039773222,-414.92959561,0.00020604,2]
[366057362,1750039773245,-168.02507818,0.00020604,2]
[366057363,1750039773479,-275.59504976,0.00020604,2]
[366057364,1750039773504,-500.0,0.00020604,2]
[366057365,1750039773527,-500.0,0.00020604,2]
[366057366,1750039773550,-464.55155816,0.00020604,2]
[366057367,1750039773573,-15944.68772595,0.00020605,2]
[366057371,1750039794471,200.0,0.0002,2]
[366057373,1750039821788,171.83211062,0.000189,2]
[366057400,1750039832147,-55.31227405,0.00020605,2]
[366057402,1750039832157,-2204.50937779,0.00020605,2]
[366057404,1750039832167,-454.0,0.00020838,2]
[366057406,1750039832177,-454.0,0.0002104,2]
[366057408,1750039832187,-213.36025772,0.0002112,2]
[366057410,1750039832196,-454.0,0.000212,2]
[366057412,1750039832206,-454.0,0.00021295,2]
[366057414,1750039832216,-233.71430064,0.00021501,2]
[366057416,1750039832226,-195.36309426,0.00021559,2]
[366057418,1750039832235,-300.0,0.00021655,2]
[366057420,1750039832245,-998.0,0.00021655,2]
[366057422,1750039832254,-424.47602138,0.00021656,2]
[366057424,1750039832263,-845.25843836,0.00021656,2]
[366057426,1750039832273,-229.86375354,0.00021656,2]
[366057428,1750039832285,-835.55256958,0.00021656,2]
[366057430,1750039832294,-222.512,0.00021659,2]
[366057432,1750039832305,-952.13,0.00021693,2]
[366057434,1750039832315,-460.0,0.00021917,2]
[366057436,1750039832324,-153.5102122,0.00021917,4]
[366057452,1750039832470,-460.0,0.00021917,4]
[366057454,1750039832481,-460.0,0.00021917,4]
[366057456,1750039832490,-460.0,0.00021917,4]
[366057459,1750039832501,-460.0,0.00021917,4]
[366057461,1750039832511,-162.47148753,0.00021917,4]
[366057463,1750039832520,-197.54539311,0.00021918,2]
[366057465,1750039832530,-454.0,0.00021963,2]
[366057466,1750039832539,-174.0,0.00022,2]
[366057468,1750039832550,-195.36309422,0.00022028,2]
[366057470,1750039832560,-397.67502521,0.0002219,4]
[366057472,1750039832570,-460.0,0.0002219,4]
[366057474,1750039832580,-240.8122974,0.0002219,4]
[366057476,1750039832589,-460.0,0.00022191,2]
[366057478,1750039832599,-460.0,0.00022191,4]
[366057480,1750039832609,-460.0,0.00022191,4]
[366057482,1750039832619,-460.0,0.00022191,4]
[366057484,1750039832629,-250.44630709,0.00022316,2]
[366057486,1750039832639,-527.92733511,0.00022458,2]
[366057488,1750039832649,-460.0,0.00022464,4]
[366057490,1750039832658,-257.64,0.00022465,2]
[366057492,1750039832668,-460.0,0.00022465,4]
[366057494,1750039832677,-460.0,0.00022465,4]
[366057496,1750039832687,-460.0,0.00022465,4]
[366057498,1750039832697,-523.12757653,0.00022483,2]
[366057500,1750039832706,-502.39170485,0.00022483,2]
[366057502,1750039832716,-502.16522696,0.00022483,2]
[366057504,1750039832726,-508.11809492,0.00022483,2]
[366057506,1750039832739,-500.0,0.00022483,2]
[366057508,1750039832748,-195.36309422,0.00022497,2]
[366057510,1750039832758,-500.0,0.00022515,2]
[366057512,1750039832768,-500.0,0.00022527,2]
[366057514,1750039832778,-506.71696913,0.00022527,2]
[366057516,1750039832788,-501.91221546,0.00022527,2]
[366057518,1750039832798,-502.83243986,0.00022562,2]
[366057520,1750039832807,-151.0,0.00022646,2]
[366057522,1750039832818,-151.0,0.00022646,2]
[366057523,1750039832828,-151.0,0.00022646,2]
[366057525,1750039832839,-151.63865236,0.00022646,2]
[366057527,1750039832848,-274.39170649,0.00022646,2]
[366057529,1750039832858,-220.04235131,0.00022646,2]
[366057531,1750039832867,-5000.0,0.00022646,2]
[366057533,1750039832876,-500.0,0.00022646,2]
[366057535,1750039832886,-500.0,0.00022646,2]
[366057537,1750039832895,-500.0,0.00022646,2]
[366057539,1750039832904,-500.0,0.00022646,2]
[366057541,1750039832914,-207.4,0.00022646,2]
[366057543,1750039832924,-500.0,0.00022646,2]
[366057545,1750039832934,-500.0,0.00022646,2]
[366057547,1750039832944,-500.0,0.00022646,2]
[366057549,1750039832953,-500.0,0.00022646,2]
[366057551,1750039832962,-500.0,0.00022646,2]
[366057552,1750039832972,-500.0,0.00022646,2]
[366057554,1750039832981,-500.0,0.00022646,2]
[366057556,1750039832991,-500.0,0.00022646,2]
[366057558,1750039833002,-500.0,0.00022646,2]
[366057560,1750039833011,-500.0,0.00022646,2]
[366057562,1750039833021,-532.08174967,0.00022646,2]
[366057564,1750039833032,-460.0,0.00022736,4]
[366057566,1750039833042,-308.76637435,0.00022736,4]
[366057568,1750039833053,-460.0,0.00022736,4]
[366057570,1750039833063,-504.52376439,0.00022736,4]
[366057572,1750039833073,-460.0,0.00022736,4]
[366057574,1750039833083,-460.0,0.00022738,4]
[366057576,1750039833093,-460.0,0.00022739,4]
[366057578,1750039833103,-460.0,0.00022739,4]
[366057580,1750039833113,-460.0,0.00022739,4]
[366057582,1750039833124,-444.76168344,0.0002274,2]
[366057584,1750039833134,-501.49403684,0.0002274,2]
[366057586,1750039833143,-1000.0,0.000228,2]
[366057588,1750039833154,-1000.0,0.000228,3]
[366057590,1750039833164,-406.0,0.00022877,2]
[366057592,1750039833175,-478.25993787,0.00022892,2]
[366057593,1750039833185,-195.36309422,0.00022966,2]
[366057595,1750039833195,-460.0,0.0002301,4]
[366057597,1750039833206,-460.0,0.0002301,4]
[366057600,1750039833217,-460.0,0.00023012,4]
[366057601,1750039833228,-460.0,0.00023013,4]
[366057603,1750039833239,-460.0,0.00023013,4]
[366057605,1750039833249,-315.48639169,0.00023013,4]
[366057607,1750039833260,-365.4091647,0.00023014,2]
[366057609,1750039833270,-174.0,0.00023014,7]
[366057611,1750039833281,-454.0,0.00023022,2]
[366057613,1750039833291,-454.0,0.00023283,2]
[366057615,1750039833301,-460.0,0.00023284,4]
[366057617,1750039833311,-460.0,0.00023284,4]
[366057619,1750039833321,-460.0,0.00023286,4]
[366057621,1750039833331,-460.0,0.00023287,4]
[366057623,1750039833341,-460.0,0.00023287,4]
[366057624,1750039833351,-195.36309422,0.00023435,2]
[366057626,1750039833361,-150.0,0.000235,2]
[366057628,1750039833371,-1034.223616,0.0002352,3]
[366057630,1750039833380,-420.0,0.0002354,2]
[366057632,1750039833390,-460.0,0.00023558,4]
[366057634,1750039833400,-460.0,0.00023558,4]
[366057636,1750039833410,-460.0,0.0002356,4]
[366057638,1750039833420,-460.0,0.00023561,4]
[366057640,1750039833431,-384.26942725,0.00023561,4]
[366057642,1750039833441,-2000.000043,0.00023613,7]
[366057644,1750039833451,-1904.27,0.00023665,2]
[366057646,1750039833461,-12500.0,0.00023791,3]
[366057648,1750039833472,-160.0,0.00023791,3]
[366057650,1750039833482,-424.54874296,0.00023791,3]
[366057652,1750039833493,-835.67987521,0.00023791,3]
[366057654,1750039833502,-586.56,0.000238,2]
[366057656,1750039833513,-4220.7398309,0.000238,3]
[366057658,1750039833523,-1000.0,0.000238,4]
[366057660,1750039833535,-860.67,0.000238,5]
[366057662,1750039833546,-54234.31845816,0.000238,2]
[366057664,1750039833556,-460.0,0.00023832,4]
[366057666,1750039833567,-460.0,0.00023832,4]
[366057667,1750039833577,-460.0,0.00023834,4]
[366057669,1750039833587,-460.0,0.00023835,4]
[366057671,1750039833597,-454.0,0.00023888,2]
[366057673,1750039833608,-964.0,0.00023896,2]
[366057675,1750039833618,-2160.0,0.00023896,2]
[366057677,1750039833628,-653.0,0.00023896,2]
[366057679,1750039833638,-171.83211062,0.000239,2]
[366057681,1750039833648,-195.36309422,0.00023904,2]
[366057683,1750039833658,-365.4091647,0.00023973,2]
[366057685,1750039833670,-365.4091647,0.00023973,2]
[366057687,1750039833680,-365.4091647,0.00023973,2]
[366057689,1750039833690,-341.6630427,0.00023973,2]
[366057691,1750039833700,-365.4091647,0.00023973,2]
[366057693,1750039833710,-365.4091647,0.00023973,2]
[366057694,1750039833719,-365.4091647,0.00023973,2]
[366057696,1750039833730,-256.5506391,0.00023973,2]
[366057698,1750039833743,-56753.73475502,0.00024,2]
[366057700,1750039833758,-2188.32564326,0.00024,2]
[366057744,1750039838016,-500.0,0.00022645,2]
[366057746,1750039838026,-500.0,0.00022645,2]
[366057748,1750039838036,-500.0,0.00022645,2]
[366057749,1750039838047,-500.0,0.00022645,2]
[366057751,1750039838057,-500.0,0.00022645,2]
[366057753,1750039838066,-500.0,0.00022645,2]
[366057755,1750039838075,-500.0,0.00022645,2]
[366057757,1750039838085,-580.15498548,0.00022645,2]
[366057759,1750039838095,-500.0,0.00022645,2]
[366057761,1750039838105,-277.0641113,0.00022645,2]
[366057934,1750039840312,200.0,0.0002,2]
[366057935,1750039840372,-460.0,0.00021917,4]
[366057936,1750039840382,-364.46592575,0.00022191,4]
[366057937,1750039840392,-222.9358887,0.00022645,2]
[366057938,1750039840401,-500.0,0.00022645,2]
[366057939,1750039840411,-500.0,0.00022645,2]
[366057940,1750039840421,-403.59818555,0.00022645,2]
[366059125,1750040525349,163.646106,0.00013699,2]
[366059133,1750040829116,-976.00827093,0.00019642,2]
[366059134,1750040843153,-449.80078487,0.00019642,2]
[366059135,1750040851077,-389.45734912,0.00019642,2]
[366059141,1750040974202,-3184.73359508,0.00019642,2]
[366059142,1750040974225,-301.06611918,0.00019941,3]
[366059143,1750040974250,-659.8261518,0.00020041,2]
[366059144,1750041026879,150.0,0.000189,2]
[366059167,1750041032248,-4733.16455657,0.00020243,2]
[366059169,1750041032258,-316.93010785,0.00020447,2]
[366059171,1750041032268,-554.1271309,0.00020727,2]
[366059173,1750041032279,-1200.0,0.00020907,2]
[366059175,1750041032288,-300.0,0.00020908,2]
[366059177,1750041032298,-300.0,0.00020908,2]
[366059179,1750041032309,-300.0,0.00020908,2]
[366059181,1750041032318,-414.29624142,0.00020909,2]
[366059183,1750041032327,-500.0,0.00020909,2]
[366059185,1750041032337,-412.03316117,0.00020909,2]
[366059187,1750041032346,-500.0,0.00020909,2]
[366059189,1750041032355,-500.0,0.00020909,2]
[366059191,1750041032365,-500.0,0.00020909,2]
[366059194,1750041032375,-500.0,0.00020909,2]
[366059198,1750041032385,-500.0,0.00020909,2]
[366059201,1750041032394,-500.0,0.00020909,2]
[366059203,1750041032404,-211.54463905,0.00020909,2]
[366059238,1750041032598,-5000.0,0.0002091,2]
[366059251,1750041038163,-500.0,0.00020908,2]
[366059252,1750041038175,-500.0,0.00020908,2]
[366059253,1750041038184,-588.48426215,0.00020908,2]
[366059254,1750041038194,-500.0,0.00020908,2]
[366059255,1750041038204,-500.0,0.00020908,2]
[366059256,1750041038214,-500.0,0.00020908,2]
[366059257,1750041038223,-500.0,0.00020908,2]
[366059258,1750041038237,-500.0,0.00020908,2]
[366059259,1750041038246,-500.0,0.00020908,2]
[366059260,1750041038258,-500.0,0.00020908,2]
[366059261,1750041038268,-500.0,0.00020908,2]
[366059262,1750041038278,-500.0,0.00020908,2]
[366059263,1750041038288,-500.0,0.00020908,2]
[366059264,1750041038298,-345.30132793,0.00020908,2]
[366059265,1750041038309,-557.70036778,0.00020908,2]
[366059266,1750041038319,-500.0,0.00020908,2]
[366059267,1750041038329,-380.50611407,0.00020908,2]
[366059268,1750041038339,-584.1518593,0.00020908,2]
[366059269,1750041038349,-175.14330947,0.00020908,2]
[366059270,1750041038358,-500.0,0.00020908,2]
[366059271,1750041038368,-500.0,0.00020908,2]
[366059272,1750041038378,-500.0,0.00020908,2]
[366059273,1750041038388,-3403.64577298,0.0002091,2]
[366059274,1750041038398,-300.0,0.0002091,2]
[366059275,1750041038407,-7477.04207149,0.00020911,2]
[366059276,1750041038420,-1147.83826576,0.00020911,2]
[366059277,1750041038436,-1286.80026481,0.00020911,2]
[366059278,1750041038447,-1834.41149369,0.00020911,2]
[366059307,1750041040428,-371.31075422,0.00020911,2]
[366059590,1750041043318,-1128.8955861,0.00020911,2]
[366059602,1750041043427,-2454.84625464,0.00020911,2]
[366059635,1750041043617,-152.302,0.00020919,2]
[366059638,1750041043630,-500.0,0.00020922,2]
[366059640,1750041043640,-348.32174536,0.00020922,2]
[366059903,1750041046335,-151.67825464,0.00020922,2]
[366059905,1750041046345,-185.62289092,0.00020922,2]
[366060704,1750041328240,150.0,0.000189,2]
[366060707,1750041451202,5000.0,0.00019,2]
[366060708,1750041457521,8601.44913053,0.0002465,120]
[366060709,1750041466740,3332.69360662,0.00019,2]
[366060710,1750041482545,3689.65038048,0.00019,2]
[366060711,1750041482573,1310.34961952,0.00019,2]
[366060712,1750041491839,163.646106,0.00013699,2]
[366060715,1750041498583,233.53644604,0.00019,2]
[366060723,1750041959098,307.0,0.00019,2]
[366060725,1750041968868,158.0,0.00024943,60]
[366060726,1750042035135,-175.536334,0.00019282,2]
[366060727,1750042035158,-189.19154338,0.00019283,2]
[366060728,1750042035179,-192.82840822,0.00019775,2]
[366060729,1750042035200,-312.39843516,0.000198,2]
[366060730,1750042035222,-300.0,0.00019874,2]
[366060731,1750042035244,-500.0,0.00019875,2]
[366060732,1750042035267,-500.0,0.00019875,2]
[366060733,1750042035432,-500.0,0.00019875,2]
[366060734,1750042035457,-385.59309613,0.00019875,2]
[366060735,1750042035481,-500.0,0.00019875,2]
[366060736,1750042035503,-412.9794404,0.00019875,2]
[366060737,1750042035528,-290.81737126,0.00019875,2]
[366060738,1750042035552,-356.65157358,0.00019875,2]
[366060739,1750042035579,-500.0,0.00019875,2]
[366060740,1750042035601,-500.0,0.00019875,2]
[366060741,1750042035624,-198.84436832,0.00019875,2]
[366060742,1750042035649,-500.0,0.00019875,2]
[366060743,1750042035673,-500.0,0.00019875,2]
[366060744,1750042035696,-500.0,0.00019875,2]
[366060745,1750042035719,-500.0,0.00019875,2]
[366060746,1750042035742,-500.0,0.00019875,2]
[366060747,1750042035764,-500.0,0.00019875,2]
[366060748,1750042035788,-493.03821023,0.00019875,2]
[366060749,1750042038119,-6.96178977,0.00019875,2]
[366060750,1750042038144,-500.0,0.00019875,2]
[366060751,1750042038169,-500.0,0.00019875,2]
[366060752,1750042038194,-500.0,0.00019875,2]
[366060753,1750042038218,-500.0,0.00019875,2]
[366060754,1750042038241,-500.0,0.00019875,2]
[366060755,1750042038266,-500.0,0.00019875,2]
[366060756,1750042038290,-500.0,0.00019875,2]
[366060757,1750042038313,-500.0,0.00019875,2]
[366060758,1750042038337,-500.0,0.00019875,2]
[366060759,1750042038359,-282.07803116,0.00019875,2]
[366060760,1750042038386,-214.61648794,0.00019875,2]
[366060761,1750042038409,-500.0,0.00019875,2]
[366060762,1750042038434,-500.0,0.00019875,2]
[366060763,1750042038457,-3368.05458148,0.00019876,2]
[366060764,1750042038479,-1001.09567807,0.00019878,2]
[366060765,1750042038502,-500.0,0.00019878,2]
[366060766,1750042038527,-500.0,0.00019878,2]
[366060767,1750042038552,-500.0,0.00019878,2]
[366060768,1750042038578,-643.99582274,0.00019878,2]
[366060769,1750042038604,-500.0,0.00019878,2]
[366060770,1750042038629,-500.0,0.00019878,2]
[366060771,1750042038654,-500.0,0.00019878,2]
[366060772,1750042038679,-500.0,0.00019878,2]
[366060773,1750042038703,-500.0,0.00019878,2]
[366060774,1750042038736,-291.09551989,0.00019878,2]
[366060775,1750042156163,-261.85017484,0.00019878,2]
[366060776,1750042156186,-475.78644791,0.00019878,2]
[366060777,1750042156208,-634.95738755,0.00019878,2]
[366060778,1750042156229,-300.0,0.00019878,2]
[366060779,1750042156250,-24900.0,0.00019879,2]
[366060780,1750042156271,-516.61789711,0.000199,2]
[366060781,1750042156292,-2002.0,0.0002,2]
[366060782,1750042156313,-793.21872915,0.00020419,2]
[366060815,1750042232412,-493.52358549,0.00020419,2]
[366060821,1750042232466,-417.7933728,0.00020419,2]
[366060823,1750042232478,-170.793,0.00020453,2]
[366060825,1750042232488,-180.9322516,0.00020806,2]
[366060827,1750042232498,-283.34617118,0.0002081,2]
[366060829,1750042232509,-998.97,0.00021222,2]
[366060831,1750042232519,-835.67987521,0.00021505,2]
[366060833,1750042232530,-845.4146947,0.00021506,2]
[366060835,1750042232540,-160.0,0.00021506,2]
[366060837,1750042232551,-300.0,0.00021759,2]
[366060839,1750042232562,-500.0,0.0002176,2]
[366060841,1750042232572,-503.66896634,0.0002176,2]
[366060843,1750042232583,-370.81707393,0.00021797,2]
[366060845,1750042232595,-460.0,0.00021917,4]
[366060847,1750042232605,-460.0,0.00021917,4]
[366060849,1750042232615,-1000.0,0.00021917,4]
[366060851,1750042232627,-460.0,0.00021917,4]
[366060853,1750042232640,-323.19564629,0.00021917,4]
[366060855,1750042232651,-460.0,0.00021917,2]
[366060857,1750042232661,-215.57,0.00021917,4]
[366060859,1750042232671,-460.0,0.00021917,4]
[366060861,1750042232681,-209.914914,0.00021917,4]
[366060863,1750042232691,-582.24616839,0.00021917,4]
[366060865,1750042232701,-513.68078513,0.00021917,4]
[366060867,1750042232712,-539.68747661,0.00021917,4]
[366060868,1750042232722,-460.0,0.00021917,4]
[366060869,1750042232732,-460.0,0.00021917,4]
[366060871,1750042232742,-591.75519121,0.00021917,4]
[366060873,1750042232752,-465.26868377,0.00021917,4]
[366060875,1750042232763,-460.0,0.00021917,4]
[366060876,1750042232773,-460.0,0.00021917,4]
[366060878,1750042232783,-508.1117437,0.00021917,4]
[366060880,1750042232793,-460.0,0.00021917,4]
[366060882,1750042232802,-460.0,0.00021917,4]
[366060884,1750042232812,-460.0,0.00021917,4]
[366060886,1750042232821,-460.0,0.00021917,4]
[366060888,1750042232836,-553.28249802,0.00021917,4]
[366060890,1750042232845,-460.0,0.00021917,4]
[366060892,1750042232855,-518.70432227,0.00021917,4]
[366060894,1750042232865,-460.0,0.00021917,4]
[366060896,1750042232875,-460.0,0.00021917,4]
[366060898,1750042232886,-460.0,0.00021917,4]
[366060899,1750042232895,-273.3486308,0.00022091,2]
[366060900,1750042232905,-191.0,0.00022101,2]
[366060901,1750042232916,-159.72609332,0.00022191,4]
[366060902,1750042232926,-460.0,0.00022191,4]
[366060903,1750042232936,-1004.56225019,0.00022191,4]
[366060904,1750042232946,-475.22345248,0.00022191,4]
[366060905,1750042232956,-460.0,0.00022191,2]
[366060906,1750042232966,-460.0,0.00022191,4]
[366060907,1750042232976,-460.0,0.00022191,4]
[366060908,1750042232986,-460.0,0.00022191,4]
[366060909,1750042232995,-460.0,0.00022191,4]
[366060910,1750042233006,-460.0,0.00022191,4]
[366060911,1750042233017,-453.97964025,0.00022191,4]
[366060912,1750042233027,-317.72677077,0.00022191,4]
[366060913,1750042233037,-200.15357414,0.00022202,2]
[366060914,1750042233047,-191.0,0.0002223,2]
[366060915,1750042233057,-175.0,0.000224,3]
[366060916,1750042233068,-171.90597588,0.000224,2]
[366060917,1750042233079,-500.0,0.00022459,2]
[366060918,1750042233088,-771.40192167,0.0002246,2]
[366060919,1750042233098,-460.0,0.00022465,4]
[366060920,1750042233109,-460.0,0.00022465,2]
[366060921,1750042233119,-460.0,0.00022465,4]
[366060922,1750042233129,-460.0,0.00022465,4]
[366060923,1750042233139,-460.0,0.00022465,4]
[366060924,1750042233148,-460.0,0.00022465,4]
[366060925,1750042233158,-403.8257174,0.00022466,2]
[366060926,1750042233169,-163.9994326,0.00022466,2]
[366060927,1750042233179,-153.0,0.00022466,2]
[366060928,1750042233189,-1203.8189346,0.00022466,2]
[366060929,1750042233199,-156.8092932,0.00022466,2]
[366060930,1750042233209,-158.9308009,0.00022466,2]
[366060931,1750042233219,-153.0,0.00022466,2]
[366060932,1750042233230,-153.0,0.00022466,2]
[366060933,1750042233240,-158.9308009,0.00022466,2]
[366060934,1750042233251,-153.0,0.00022466,2]
[366060935,1750042233261,-153.0,0.00022466,2]
[366060936,1750042233271,-153.0,0.00022466,2]
[366060937,1750042233281,-153.0,0.00022466,2]
[366060938,1750042233291,-153.0,0.00022466,2]
[366060939,1750042233301,-307.8590012,0.00022466,2]
[366060940,1750042233310,-273.34863075,0.00022484,2]
[366060941,1750042233320,-576.16336477,0.00022546,2]
[366060942,1750042233331,-150.0,0.0002255,2]
[366060943,1750042233341,-500.0,0.00022599,2]
[366060944,1750042233351,-500.0,0.00022599,2]
[366060945,1750042233362,-500.0,0.00022599,2]
[366060946,1750042233372,-300.79707591,0.00022599,2]
[366060947,1750042233382,-543.45223704,0.00022599,2]
[366060948,1750042233391,-500.0,0.00022599,2]
[366060949,1750042233401,-175.0,0.000226,4]
[366060950,1750042233411,-480.756142,0.000226,2]
[366060951,1750042233421,-480.756142,0.000226,2]
[366060952,1750042233431,-191.0,0.00022612,2]
[366060953,1750042233441,-207.4,0.00022646,2]
[366060954,1750042233454,-25000.0,0.00022646,2]
[366060955,1750042233464,-153.221812,0.00022646,7]
[366060956,1750042233474,-151.0,0.00022646,7]
[366060957,1750042233484,-152.30005,0.00022646,7]
[366060958,1750042233494,-158.529376,0.00022646,7]
[366060959,1750042233503,-152.070089,0.00022646,7]
[366060960,1750042233514,-480.756142,0.00022646,2]
[366060961,1750042233524,-480.756142,0.00022646,2]
[366060962,1750042233534,-152.795637,0.00022646,7]
[366060963,1750042233544,-159.519924,0.00022646,7]
[366060964,1750042233555,-153.684088,0.00022646,7]